bitfinex/quotes_ETHUSD_20220310
["timestamp","ask_amount","ask_price","bid_price","bid_amount"]
[1646946327305,0.92962361,2616.7,2616.5,3.56933162]
[1646946327511,0.92962361,2616.7,2616.6,1.09700954]
[1646946329007,0.05327582,2617.2,2616.6,1.09700954]
[1646946329210,0.042945,2617.4,2616.6,1.09700954]
[1646946329840,0.04402712,2617.3,2616.6,1.09700954]
[1646946330040,0.04402712,2617.3,2616.9,0.00464688]
[1646946330242,0.04402712,2617.3,2617.0,1.09700954]
[1646946330443,0.04402712,2617.3,2617.1,1.09700954]
[1646946330640,0.04402712,2617.3,2616.9,0.00464688]
[1646946330641,0.94788214,2617.2,2616.9,0.00464688]
[1646946330846,0.05466555,2617.1,2617.0,1.06355412]
[1646946331543,0.05466555,2617.1,2616.8,1.06355412]
[1646946331744,0.05466555,2617.1,2616.9,1.06355412]
[1646946331944,0.05466555,2617.1,2617.0,1.06355412]
[1646946332447,0.05466555,2617.1,2616.9,0.00225868]
[1646946332846,0.05466555,2617.1,2616.9,1.0658128]
[1646946333045,3.55466555,2617.1,2616.9,0.00225868]
[1646946333248,0.05401759,2617.0,2616.6,1.06248534]
[1646946333521,0.05401759,2617.0,2616.0,0.00157842]
[1646946333522,1.95622,2616.9,2616.0,0.00157842]
[1646946333724,3.54719216,2616.8,2615.8,1.06261514]
[1646946333922,0.04551394,2616.7,2615.8,1.06261514]
[1646946334121,0.9611523,2616.1,2615.8,1.06261514]
[1646946335127,0.9611523,2616.1,2615.9,1.06261514]
[1646946335523,0.9611523,2616.1,2616.0,1.06261514]
[1646946335922,0.9611523,2616.1,2615.4,1.06419356]
[1646946336124,0.9611523,2616.1,2615.4,1.06261514]
[1646946336327,1.01335766,2616.1,2615.5,1.01261514]
[1646946336524,0.93519111,2615.6,2615.5,0.96261514]
[1646946336724,1.05220536,2616.1,2615.4,1.9126567]
[1646946337338,0.05553577,2616.0,2615.4,1.9126567]
[1646946337740,1.10120559,2616.0,2615.4,1.9126567]
[1646946337939,0.04614743,2616.6,2615.4,1.9126567]
[1646946338339,0.04614743,2616.6,2615.4,3.7041323]
[1646946338538,0.04614743,2616.6,2615.6,0.00462859]
[1646946338738,0.04614743,2616.6,2615.8,0.9561563]
[1646946338943,0.04614743,2616.6,2615.7,3.1184725]
[1646946338944,0.99899431,2616.0,2615.7,2.1623125]
[1646946339541,0.99899431,2616.0,2615.8,0.07532005]
[1646946340545,0.99899431,2616.0,2615.4,1.9126567]
[1646946340746,0.99899431,2616.0,2615.8,0.00462842]
[1646946341889,0.99899431,2616.0,2615.4,1.9126567]
[1646946342086,0.99899431,2616.0,2615.8,0.00462842]
[1646946342886,0.99899431,2616.0,2615.4,1.9126567]
[1646946343288,1.0,2616.2,2615.8,0.00447568]
[1646946343487,1.0,2616.6,2615.8,0.00447568]
[1646946344086,1.0,2616.6,2615.3,0.07351594]
[1646946344291,3.8,2616.0,2615.9,0.9561707]
[1646946347850,3.8,2616.0,2615.7,2.8684813]
[1646946348051,3.8,2616.0,2615.8,0.00431051]
[1646946348891,3.8,2616.0,2615.7,2.8684813]
[1646946349292,3.8,2616.0,2615.8,0.00431055]
[1646946350097,5.84284547,2616.0,2615.5,0.3831]
[1646946351095,5.84284547,2616.0,2615.3,0.3831]
[1646946351502,3.8,2616.0,2615.4,0.3831]
[1646946351896,0.9560808,2616.5,2615.6,0.3831]
[1646946352104,2.1326,2617.2,2615.8,0.3831]
[1646946352363,3.5,2617.4,2616.0,0.3764023]
[1646946352552,0.99185999,2617.0,2616.2,0.3764023]
[1646946352753,1.29185999,2617.0,2616.3,0.95583]
[1646946352953,0.99185999,2617.0,2616.2,2.2880123]
[1646946353351,1.29185999,2617.0,2616.2,2.2880123]
[1646946354454,5.09185999,2617.0,2616.3,0.95585]
[1646946355058,5.08605999,2617.0,2616.3,0.95585]
[1646946355659,6.04198139,2617.0,2616.2,1.91161]
[1646946355860,6.34198139,2617.0,2616.2,1.91161]
[1646946356290,0.3,2616.9,2616.0,1.91327842]
[1646946356493,0.960465,2616.6,2616.0,1.9117]
[1646946357392,0.960465,2616.6,2616.1,1.02391801]
[1646946357593,0.960465,2616.6,2616.2,0.00461567]
[1646946357793,0.23773227,2616.8,2616.2,0.00461567]
[1646946358593,0.23773227,2616.8,2616.1,0.08917822]
[1646946358794,0.23773227,2616.8,2616.4,0.0046155]
[1646946358993,1.04566691,2616.7,2616.4,0.0046155]
[1646946359393,1.34566691,2616.7,2616.4,0.0046155]
[1646946359850,1.34566691,2616.7,2616.2,0.08547112]
[1646946360044,1.34566691,2616.7,2616.4,0.00461546]
[1646946360244,1.34566691,2616.7,2616.4,0.09455911]
[1646946360448,4.7559185,2617.0,2616.4,0.00461546]
[1646946360647,3.8,2617.0,2616.5,0.9958554]
[1646946360849,3.8,2617.0,2616.6,0.0848088]
[1646946360850,4.1,2617.0,2616.6,0.0848088]
[1646946361249,4.1,2617.0,2616.6,0.00461533]
[1646946361451,5.07496757,2617.0,2616.6,0.00461533]
[1646946361850,5.07496757,2617.0,2616.7,0.9982918]
[1646946362049,5.07496757,2617.0,2616.8,0.07493775]
[1646946362248,4.77496757,2617.0,2616.8,0.07493775]
[1646946362452,4.77496757,2617.0,2616.5,0.95579]
[1646946362453,4.77496757,2617.0,2616.7,0.00446295]
[1646946362848,4.77496757,2617.0,2616.8,0.99929331]
[1646946363050,4.77496757,2617.0,2616.9,0.08880648]
[1646946363488,4.77496757,2617.0,2616.6,1.07988458]
[1646946363689,4.77496757,2617.0,2616.8,0.00446287]
[1646946363889,4.77496757,2617.0,2616.9,0.99941826]
[1646946364289,5.07496757,2617.0,2616.9,0.99941826]
[1646946364689,5.07496757,2617.0,2616.6,0.99941826]
[1646946364894,4.1,2617.0,2616.8,0.00446283]
[1646946365099,4.1,2617.0,2616.9,0.99941826]
[1646946365100,3.8,2617.0,2616.9,0.99941826]
[1646946365294,3.8,2617.0,2616.8,0.00446283]
[1646946365496,3.8,2617.0,2616.9,0.99941826]
[1646946365694,3.8,2617.0,2616.8,0.00446283]
[1646946365894,3.8,2617.0,2616.9,0.99941826]
[1646946366296,3.8,2617.0,2616.8,0.00429444]
[1646946366497,3.8,2617.0,2616.9,0.99941826]
[1646946366896,3.8,2617.0,2616.4,0.99941826]
[1646946367098,3.8,2617.0,2616.5,0.99941826]
[1646946367339,3.8,2617.0,2616.8,0.0042944]
[1646946367538,4.8642444,2617.0,2616.9,0.99941826]
[1646946367742,4.8642444,2617.0,2616.8,0.0042944]
[1646946367940,5.1642444,2617.0,2616.9,0.99941826]
[1646946368443,8.0324075,2617.0,2616.9,0.99941826]
[1646946368640,8.0324075,2617.0,2616.8,0.00429444]
[1646946368841,8.0324075,2617.0,2616.9,0.99941826]
[1646946369041,6.1203244,2617.0,2616.9,0.99941826]
[1646946369240,6.1203244,2617.0,2616.8,0.00429444]
[1646946369441,5.1642444,2617.0,2616.9,0.99941826]
[1646946369642,1.17016186,2616.5,2616.2,0.70153112]
[1646946369846,1.17016186,2616.5,2616.3,1.00554945]
[1646946370044,1.17016186,2616.5,2616.4,1.00554945]
[1646946370445,6.0121108,2617.0,2616.3,0.70153112]
[1646946370645,0.956007,2616.9,2616.3,0.70153112]
[1646946370845,0.956007,2616.9,2616.3,1.70708057]
[1646946371092,0.956007,2616.9,2616.4,1.00554945]
[1646946371391,4.1,2617.0,2616.5,1.00554945]
[1646946371596,4.1,2617.0,2616.4,1.70708057]
[1646946371597,5.1924942,2617.0,2616.4,1.70708057]
[1646946371791,5.1924942,2617.0,2616.5,1.70708057]
[1646946371992,5.1924942,2617.0,2616.6,1.00554945]
[1646946372192,5.1924942,2617.0,2616.7,1.00554945]
[1646946372392,5.1924942,2617.0,2616.8,1.00554945]
[1646946372593,5.1924942,2617.0,2616.9,1.00554945]
[1646946372993,5.1924942,2617.0,2616.5,0.70153112]
[1646946373194,0.55448337,2616.9,2616.8,0.00461146]
[1646946373393,4.05448337,2616.9,2616.8,1.01016091]
[1646946373596,4.05448337,2616.9,2616.8,0.00461146]
[1646946373597,6.01060337,2616.9,2616.8,0.00461146]
[1646946373793,7.01060337,2616.9,2616.8,0.00461146]
[1646946373994,7.05634171,2616.9,2616.8,0.00461146]
[1646946374196,7.05634171,2616.9,2616.0,0.00157842]
[1646946374400,1.9125506,2616.7,2616.5,0.0320867]
[1646946374599,0.60628914,2616.6,2616.5,0.0320867]
[1646946374847,4.99538337,2616.6,2616.5,0.0320867]
[1646946375248,29.0,2616.5,2615.9,0.00157842]
[1646946375454,29.0,2616.5,2615.2,5.6095381]
[1646946375455,16.71080397,2616.4,2615.8,1.00731822]
[1646946375651,16.71080397,2616.4,2615.9,1.00731822]
[1646946375652,3.52434109,2616.3,2615.9,1.00731822]
[1646946375849,0.55448337,2616.2,2616.0,1.00731822]
[1646946376049,0.55448337,2616.2,2615.5,0.00157842]
[1646946376251,4.05448337,2616.2,2615.5,0.99380463]
[1646946376452,0.9564649,2616.0,2615.5,0.99380463]
[1646946376650,0.9564649,2616.0,2615.6,0.99380463]
[1646946376651,0.55448337,2615.9,2615.6,0.99380463]
[1646946376854,0.55448337,2615.9,2615.7,0.99380463]
[1646946376855,1.0,2615.8,2615.7,0.99380463]
[1646946377052,1.55448337,2615.8,2615.2,0.99380463]
[1646946377250,1.51107337,2615.7,2615.2,0.99380463]
[1646946377451,1.0,2615.8,2615.3,0.99380463]
[1646946377452,3.8697589,2615.8,2615.3,0.99380463]
[1646946377654,11.7,2616.4,2615.4,0.99380463]
[1646946377854,0.56788269,2616.3,2615.5,0.99380463]
[1646946378059,1.0,2616.2,2615.6,0.99380463]
[1646946378254,1.0,2616.2,2615.7,0.99380463]
[1646946378255,0.56788269,2616.1,2615.7,0.99380463]
[1646946378499,1.03754264,2615.9,2615.8,0.99380463]
[1646946378703,2.98642754,2616.1,2616.0,0.28440311]
[1646946378907,3.57343279,2616.1,2616.0,0.28440311]
[1646946379104,3.57343279,2616.1,2616.0,1.27820774]
[1646946379702,2.49968685,2616.1,2616.0,1.27820774]
[1646946379905,1.0,2616.5,2616.0,1.27820774]
[1646946380104,0.56746874,2616.4,2616.1,0.99380463]
[1646946380503,2.8691333,2616.6,2616.1,0.99380463]
[1646946380709,0.99414331,2616.4,2616.1,0.99841279]
[1646946380904,0.99414331,2616.4,2616.2,0.99380463]
[1646946381104,1.29414331,2616.4,2616.2,0.99380463]
[1646946381705,1.29414331,2616.4,2616.3,0.99380463]
[1646946381905,0.3,2616.4,2616.3,0.99380463]
[1646946382106,0.56724097,2616.4,2616.2,0.00460812]
[1646946382357,0.9561358,2616.5,2616.3,0.99185001]
[1646946382956,0.9561358,2616.5,2616.4,0.99185001]
[1646946383156,1.52327793,2616.5,2616.2,0.0044526]
[1646946383359,0.9561358,2616.5,2616.3,0.99169166]
[1646946383658,0.3,2616.4,2616.3,0.99169166]
[1646946384660,0.3,2616.4,2616.3,1.01116417]
[1646946389945,0.3,2616.4,2616.3,1.016805]
[1646946393251,0.3,2616.4,2616.2,0.91358815]
[1646946393513,0.3,2616.4,2616.2,0.02389425]
[1646946393703,1.3,2616.4,2616.2,0.02389425]
[1646946393906,1.3,2616.4,2616.2,0.02836042]
[1646946394303,2.24518371,2616.4,2616.2,0.02836042]
[1646946394704,2.24518371,2616.4,2616.2,0.02389425]
[1646946395106,2.24518371,2616.4,2616.3,0.04871485]
[1646946395504,1.24518371,2616.4,2616.3,0.04871485]
[1646946396105,2.24518371,2616.4,2616.3,0.04871485]
[1646946396905,1.3,2616.4,2616.3,0.04871485]
[1646946399343,4.7561358,2616.5,2616.4,0.29324147]
[1646946400152,5.77804082,2616.5,2616.4,0.29324147]
[1646946400745,6.73427082,2616.5,2616.4,0.29324147]
[1646946401195,7.03427082,2616.5,2616.4,0.29324147]
[1646946401404,5.0561358,2616.5,2616.4,0.29324147]
[1646946401996,6.0561358,2616.5,2616.4,0.29324147]
[1646946403298,6.0561358,2616.5,2616.4,0.00667283]
[1646946403499,9.5561358,2616.5,2616.4,0.00667283]
[1646946403899,6.0561358,2616.5,2616.4,0.00667283]
[1646946404101,9.5561358,2616.5,2616.4,0.00667283]
[1646946404303,10.72663791,2616.5,2616.4,0.00667283]
[1646946404503,11.72663791,2616.5,2616.4,0.00667283]
[1646946404761,10.95647,2616.4,2616.0,0.28440311]
[1646946404961,0.95645,2616.3,2616.0,0.28440311]
[1646946405159,1.14844942,2616.1,2616.0,0.28440311]
[1646946405759,1.0205,2616.2,2616.0,0.28440311]
[1646946405960,0.95644,2616.1,2616.0,0.28440311]
[1646946406967,1.95644,2616.1,2616.0,0.28440311]
[1646946407365,1.0,2616.1,2616.0,0.28440311]
[1646946407566,4.8,2616.5,2616.0,0.28440311]
[1646946407764,0.9561437,2616.4,2616.0,0.28440311]
[1646946407961,5.712349,2616.5,2616.0,0.28440311]
[1646946408363,6.9113693,2616.5,2616.1,0.00458925]
[1646946408593,7.9113693,2616.5,2616.1,0.00458925]
[1646946408792,0.3,2616.4,2616.1,0.00458925]
[1646946409193,1.2561194,2616.4,2616.0,0.28440311]
[1646946409393,1.2561194,2616.4,2616.1,0.00458925]
[1646946410396,1.2561194,2616.4,2616.0,0.28440311]
[1646946410597,1.2561194,2616.4,2616.1,0.00458925]
[1646946411599,1.2561194,2616.4,2616.0,0.28440311]
[1646946411801,1.2561194,2616.4,2616.1,0.0044378]
[1646946412662,1.2561194,2616.4,2616.0,0.36299686]
[1646946413064,1.2561194,2616.4,2616.1,0.0044378]
[1646946413564,0.64082116,2616.3,2616.2,0.9223484]
[1646946413764,0.94082116,2616.3,2616.2,0.9223484]
[1646946414769,4.1,2616.5,2616.2,1.8783284]
[1646946414965,0.64097303,2616.4,2616.3,0.9223484]
[1646946415767,0.64097303,2616.4,2616.3,2.04915412]
[1646946416196,3.8,2616.5,2616.3,2.04915412]
[1646946416393,3.8,2616.5,2616.4,4.4223484]
[1646946417001,0.20309216,2616.5,2616.4,4.4223484]
[1646946417200,0.3822,2617.3,2616.9,2.12201992]
[1646946417201,1.08738843,2617.3,2616.9,2.12201992]
[1646946417407,2.911727,2617.4,2616.9,2.12201992]
[1646946417408,0.64130032,2617.2,2617.0,0.9223484]
[1646946417600,0.64130032,2617.3,2617.0,0.9223484]
[1646946417799,1.70518843,2617.4,2616.6,1.9116]
[1646946417800,0.64130032,2617.2,2616.7,0.9223484]
[1646946418000,0.64130032,2617.1,2616.8,0.9223484]
[1646946418199,0.64130032,2617.0,2616.9,0.9223484]
[1646946418599,0.64130032,2617.0,2616.8,0.9223484]
[1646946418802,0.64130032,2617.0,2616.9,0.9223484]
[1646946419201,0.64130032,2617.2,2616.9,0.9223484]
[1646946419503,0.64130032,2617.1,2616.9,0.9223484]
[1646946419745,0.64130032,2617.0,2616.9,0.9223484]
[1646946420145,0.64130032,2617.0,2616.9,1.88238072]
[1646946420344,0.64130032,2617.0,2616.9,0.92661072]
[1646946420745,0.64130032,2617.0,2616.9,0.92591173]
[1646946420945,1.64130032,2617.0,2616.9,0.92591381]
[1646946421145,1.64130032,2617.0,2616.9,0.92157054]
[1646946421345,0.75359228,2616.7,2616.3,1.1891]
[1646946421549,1.59737602,2616.6,2616.4,0.92183946]
[1646946421846,1.59737602,2616.6,2616.1,4.45609]
[1646946421847,0.64130032,2616.5,2616.1,3.5]
[1646946422047,0.64130032,2616.5,2616.2,0.92166048]
[1646946422646,0.64130032,2616.5,2616.2,0.92602503]
[1646946422846,0.64130032,2616.5,2616.3,0.92166048]
[1646946423048,0.64130032,2616.5,2616.4,0.92166048]
[1646946423512,0.64130032,2616.5,2616.3,0.92166048]
[1646946423513,0.94130032,2616.5,2616.3,0.92166048]
[1646946423696,0.3,2616.5,2616.4,0.92166048]
[1646946423995,0.64146908,2616.5,2616.3,0.00436623]
[1646946424194,0.64146908,2616.5,2616.4,0.92166048]
[1646946425201,0.64146908,2616.5,2616.3,0.00436623]
[1646946425402,0.64146908,2616.5,2616.4,0.92166048]
[1646946425603,4.44146908,2616.5,2616.4,0.92166048]
[1646946426001,4.44146908,2616.5,2616.2,0.92166048]
[1646946426203,0.64146908,2616.4,2616.3,0.92591839]
[1646946426402,0.94146908,2616.4,2616.3,0.00425791]
[1646946426602,0.94146908,2616.4,2616.3,0.92591839]
[1646946426804,0.94146908,2616.4,2616.3,0.00425791]
[1646946427003,0.94146908,2616.4,2616.3,0.92591839]
[1646946427243,0.94146908,2616.4,2616.2,0.92166048]
[1646946427445,1.256139,2616.4,2616.3,0.92166048]
[1646946427646,1.89766822,2616.4,2616.3,0.92166048]
[1646946428244,1.89766822,2616.4,2616.2,0.92591846]
[1646946428447,0.64152922,2616.3,2616.2,0.92166048]
[1646946428645,0.64152922,2616.3,2616.2,0.92591846]
[1646946428851,0.94152922,2616.3,2616.2,0.92591846]
[1646946429553,0.94152922,2616.3,2616.2,0.92166048]
[1646946433008,0.64152922,2616.3,2616.2,0.92166048]
[1646946433609,0.94152922,2616.4,2616.2,1.87772048]
[1646946433809,0.64152922,2616.3,2616.2,0.95606]
[1646946434008,0.64152922,2616.3,2616.2,1.87811344]
[1646946434211,0.64153945,2616.3,2616.2,1.87811344]
[1646946434409,0.64153945,2616.3,2616.2,4.42205344]
[1646946434610,0.64153945,2616.4,2616.2,4.44005743]
[1646946434848,3.8,2616.5,2616.3,0.92205344]
[1646946435050,0.64145459,2616.4,2616.3,0.92205344]
[1646946435650,0.94145459,2616.4,2616.3,0.92205344]
[1646946439194,0.94145459,2616.4,2616.3,0.97439687]
[1646946442642,0.95135371,2616.4,2616.3,0.97439687]
[1646946443445,0.95135404,2616.4,2616.3,0.97439687]
[1646946444143,0.95138243,2616.4,2616.3,0.97439687]
[1646946444344,0.3,2616.4,2616.3,0.95704975]
[1646946444644,3.8,2616.5,2616.3,0.95704975]
[1646946444645,4.1,2616.5,2616.3,0.95704975]
[1646946444848,0.65144533,2616.4,2616.3,0.03499631]
[1646946445246,0.65144533,2616.4,2616.3,0.94739636]
[1646946446492,0.65143447,2616.4,2616.3,0.94739636]
[1646946446691,3.8,2616.5,2616.3,0.94739636]
[1646946446891,3.8,2616.5,2616.4,0.91226319]
[1646946447193,4.45143403,2616.5,2616.4,0.91226319]
[1646946448402,4.45141637,2616.5,2616.4,4.41226319]
[1646946448595,2.12001742,2616.5,2616.4,4.41226319]
[1646946448794,2.12001742,2616.5,2616.4,0.91226319]
[1646946449195,2.12001742,2616.5,2616.4,4.41226319]
[1646946449494,2.12001742,2616.5,2616.4,0.91226319]
[1646946450648,2.77146055,2616.5,2616.4,0.91226319]
[1646946454393,2.77146055,2616.5,2616.4,0.99074233]
[1646946454797,2.77146055,2616.5,2616.4,1.0087035]
[1646946457655,3.07146055,2616.5,2616.4,1.0087035]
[1646946458259,3.07146055,2616.5,2616.4,0.93022436]
[1646946459458,4.02770055,2616.5,2616.4,0.93022436]
[1646946459859,4.02770055,2616.5,2616.4,0.01796117]
[1646946459860,5.02770055,2616.5,2616.4,0.01796117]
[1646946460060,5.73288898,2616.5,2616.4,0.01796117]
[1646946460463,5.97135553,2616.5,2616.4,0.01796117]
[1646946461331,6.67766812,2616.5,2616.4,0.01796117]
[1646946461535,5.97135553,2616.5,2616.4,0.01796117]
[1646946461731,5.78260531,2616.5,2616.4,0.01796117]
[1646946461930,5.07625553,2616.5,2616.4,0.01796117]
[1646946463132,5.78264674,2616.5,2616.4,0.01796117]
[1646946464137,4.82640674,2616.5,2616.4,0.01796117]
[1646946464333,4.07146055,2616.5,2616.4,0.01796117]
[1646946464743,4.07146055,2616.5,2616.4,0.87297376]
[1646946464952,4.07146055,2616.5,2616.4,0.87304503]
[1646946468705,4.07146055,2616.5,2616.4,0.86904661]
[1646946468906,3.07146055,2616.5,2616.3,0.05654115]
[1646946469108,1.65144313,2616.4,2616.3,0.00641417]
[1646946469308,2.60770313,2616.4,2616.3,0.00214294]
[1646946469513,2.60770313,2616.4,2616.3,0.87583257]
[1646946470409,2.60770313,2616.4,2616.3,0.88669371]
[1646946471209,2.60770313,2616.4,2616.3,0.01736579]
[1646946471613,3.31409434,2616.4,2616.3,0.01736579]
[1646946472472,2.60770313,2616.4,2616.3,0.01736579]
[1646946473175,3.31409434,2616.4,2616.3,0.01736579]
[1646946473372,3.8355822,2616.4,2616.3,0.01736579]
[1646946473573,1.65144313,2616.4,2616.3,0.88669667]
[1646946474581,1.65144313,2616.4,2616.3,0.9064443]
[1646946477009,2.35783434,2616.4,2616.3,0.03711342]
[1646946479611,2.35783434,2616.4,2616.3,0.0191302]
[1646946484706,2.35783434,2616.4,2616.2,0.05981459]
[1646946484912,2.35783434,2616.4,2616.2,0.05578117]
[1646946484913,0.65144313,2616.3,2616.2,0.05578117]
[1646946485115,0.65144313,2616.3,2616.2,0.06005506]
[1646946486114,0.65144313,2616.3,2616.2,0.05578117]
[1646946487848,1.35783434,2616.3,2616.2,0.05578117]
[1646946488853,0.65144313,2616.3,2616.2,0.05578117]
[1646946489253,1.0,2616.2,2616.0,0.28440311]
[1646946489457,0.65144313,2616.1,2616.0,0.28440311]
[1646946489855,0.65144313,2616.1,2616.0,1.15344371]
[1646946490055,0.65144313,2616.1,2616.0,4.72817893]
[1646946490363,2.12001742,2616.5,2616.1,0.09028142]
[1646946490558,0.69292666,2616.4,2616.3,0.07950222]
[1646946490759,0.69292666,2616.4,2616.3,1.33164282]
[1646946490996,0.69292666,2616.4,2616.3,4.83164282]
[1646946491202,0.69292666,2616.4,2616.3,1.33164282]
[1646946491404,0.69292666,2616.4,2616.3,4.83164282]
[1646946494606,0.69292666,2616.4,2616.3,4.89181715]
[1646946494859,0.69292666,2616.4,2616.3,4.81231493]
[1646946499307,0.69292666,2616.4,2616.3,4.79251814]
[1646946501216,0.69292666,2616.4,2616.3,4.40941814]
[1646946504173,0.69292666,2616.4,2616.3,4.38985635]
[1646946504975,0.69292666,2616.4,2616.3,4.46034081]
[1646946505376,0.69292666,2616.4,2616.3,4.84344081]
[1646946506008,0.69292666,2616.4,2616.3,16.54344081]
[1646946506201,2.12001742,2616.5,2616.3,5.46561771]
[1646946506400,2.12001742,2616.5,2616.4,5.39939599]
[1646946506600,2.8131019,2616.5,2616.4,5.39939599]
[1646946506901,2.8131019,2616.5,2616.4,4.44360599]
[1646946509203,0.44125155,2616.5,2616.4,4.44360599]
[1646946509606,0.22085368,2616.5,2616.4,4.44360599]
[1646946510052,0.94501381,2616.5,2616.4,4.44360599]
[1646946510350,0.94501381,2616.5,2616.4,5.39940599]
[1646946512253,0.94501381,2616.5,2616.4,4.44360599]
[1646946512454,0.94501381,2616.5,2616.4,0.94360599]
[1646946512655,1.24501381,2616.5,2616.4,0.94360599]
[1646946512853,1.24501381,2616.5,2616.4,0.8690406]
[1646946513052,1.24501381,2616.5,2616.3,0.06009617]
[1646946513252,0.72416013,2616.4,2616.3,0.06009617]
[1646946513509,0.72416013,2616.4,2616.3,0.89649629]
[1646946513697,0.72416013,2616.4,2616.3,0.06009617]
[1646946514296,0.72416013,2616.4,2616.3,0.01956179]
[1646946515701,1.45998349,2616.7,2616.5,1.145]
[1646946515901,0.70545855,2617.1,2616.7,1.145]
[1646946516106,1.2112,2617.2,2616.9,1.145]
[1646946516107,0.70545855,2617.2,2616.9,1.145]
[1646946516501,1.70545855,2617.3,2616.9,1.145]
[1646946516901,0.2232675,2617.3,2617.0,1.145]
[1646946517103,0.2232675,2617.3,2617.2,2.145]
[1646946517553,3.4557844,2617.6,2617.4,1.145]
[1646946517554,2.5,2617.6,2617.4,1.145]
[1646946517849,0.01704442,2618.0,2617.7,0.08875458]
[1646946518048,0.01704442,2618.0,2617.9,1.145]
[1646946518249,0.93600915,2618.7,2618.6,1.145]
[1646946518452,1.41315417,2619.0,2618.6,2.23120424]
[1646946518453,0.93600915,2619.0,2618.6,2.23120424]
[1646946518653,0.93600915,2619.0,2618.7,0.14405035]
[1646946518849,0.93600915,2619.4,2618.8,1.145]
[1646946519054,0.93600915,2619.6,2619.0,1.145]
[1646946519250,0.93600915,2619.8,2619.3,1.145]
[1646946519453,0.93600915,2619.9,2619.4,0.08672199]
[1646946520054,0.93600915,2619.9,2619.8,2.145]
[1646946520253,0.93600915,2620.0,2619.8,2.145]
[1646946521098,2.0232637,2620.1,2619.8,2.145]
[1646946521302,2.0232637,2620.1,2620.0,2.145]
[1646946521696,1.08725455,2620.1,2620.0,2.145]
[1646946525152,1.08725455,2620.1,2620.0,0.70317618]
[1646946526057,1.08725455,2620.1,2620.0,1.70317618]
[1646946526252,4.88725455,2620.1,2620.0,1.70317618]
[1646946527054,16.58725455,2620.1,2620.0,1.70317618]
[1646946528595,10.5,2620.0,2619.9,0.05076713]
[1646946528800,12.00130391,2619.9,2618.7,3.81920964]
[1646946529004,12.00130391,2619.9,2618.3,1.73796829]
[1646946529005,12.65517,2619.7,2618.3,1.73796829]
[1646946529197,0.05411272,2619.4,2618.7,0.95522]
[1646946529397,0.05411272,2619.4,2619.3,1.0]
[1646946529597,0.05411272,2619.4,2619.3,0.68980925]
[1646946530203,2.00929152,2619.4,2619.3,0.68980925]
[1646946530405,1.9551788,2619.4,2619.3,0.68980925]
[1646946530604,2.18755596,2619.4,2619.3,0.68980925]
[1646946533353,1.0,2619.4,2619.3,0.68980925]
[1646946534652,1.05323166,2619.4,2619.3,0.68980925]
[1646946539300,1.03992375,2619.4,2619.3,0.68980925]
[1646946540557,0.03992375,2619.4,2619.3,0.68980925]
[1646946544308,0.00425554,2619.5,2619.3,0.68980925]
[1646946544911,0.00425554,2619.5,2619.4,0.6896]
[1646946545111,0.94996857,2619.7,2619.4,0.6896]
[1646946545512,0.00425551,2619.5,2619.4,0.6896]
[1646946546211,0.94996857,2619.7,2619.4,0.6896]
[1646946546514,0.0042561,2619.6,2619.4,0.6896]
[1646946546912,0.0042561,2619.6,2619.5,0.6896]
[1646946547552,0.03992375,2619.8,2619.5,0.6896]
[1646946547752,0.00425603,2619.7,2619.5,1.64436]
[1646946547952,0.00425603,2619.7,2619.5,0.95476]
[1646946548152,0.00425603,2619.7,2619.6,0.6896]
[1646946548758,0.03992375,2619.8,2619.6,0.6896]
[1646946549155,0.0441797,2619.8,2619.6,0.6896]
[1646946549655,0.00425595,2619.8,2619.6,0.19174461]
[1646946549863,0.05022966,2620.0,2619.6,0.19174461]
[1646946550058,0.00425587,2619.8,2619.6,1.14651461]
[1646946551100,0.05022966,2620.0,2619.6,1.14651461]
[1646946551303,3.8,2620.1,2619.6,1.14651461]
[1646946552503,0.002385,2620.0,2619.6,1.14651461]
[1646946552899,3.709461,2620.1,2619.6,1.14651461]
[1646946554301,3.709461,2620.1,2619.6,0.95477]
[1646946554749,3.709461,2620.1,2620.0,0.1912]
[1646946555556,3.93483308,2620.1,2620.0,0.1912]
[1646946559400,3.98590129,2620.1,2620.0,0.1912]
[1646946562008,5.67773792,2620.1,2620.0,0.1912]
[1646946562453,5.97773792,2620.1,2620.0,0.1912]
[1646946563151,5.28018044,2620.1,2620.0,0.1912]
[1646946564154,5.98512364,2620.1,2620.0,0.1912]
[1646946566300,5.28018044,2620.1,2620.0,0.1912]
[1646946567706,4.99075005,2620.1,2620.0,0.1912]
[1646946568906,4.28590129,2620.1,2620.0,0.1912]
[1646946569757,4.99075005,2620.1,2619.9,1.55163348]
[1646946569961,4.99075005,2620.1,2619.9,2.55163348]
[1646946569962,0.22537208,2620.0,2619.9,2.55163348]
[1646946570562,0.93022084,2620.0,2619.9,2.55163348]
[1646946570766,1.23022084,2620.0,2619.9,2.55163348]
[1646946571564,0.52537208,2620.0,2619.9,2.55163348]
[1646946574415,0.22537208,2620.0,2619.9,2.49918777]
[1646946574617,0.22537208,2620.0,2619.9,7.3328974]
[1646946576320,0.22537208,2620.0,2619.9,8.43645511]
[1646946579156,0.22537208,2620.0,2619.9,8.44808077]
[1646946585658,0.22537208,2620.0,2619.9,3.84453568]
[1646946586469,0.22537208,2620.0,2619.9,1.04650263]
[1646946589706,0.22537208,2620.0,2619.9,0.75801037]
[1646946590407,0.22537208,2620.0,2619.9,2.09931527]
[1646946591009,0.22537208,2620.0,2619.9,5.59931527]
[1646946591211,3.709461,2620.1,2619.9,5.59931527]
[1646946591412,3.7137343,2620.1,2620.0,4.8413049]
[1646946591715,3.92416686,2620.1,2620.0,4.8413049]
[1646946592111,3.92416686,2620.1,2620.0,5.87774315]
[1646946592364,3.91989356,2620.1,2620.0,5.87774315]
[1646946592763,3.91989356,2620.1,2620.0,6.58894315]
[1646946592962,3.91980214,2620.1,2620.0,6.58894315]
[1646946593163,3.709461,2620.1,2620.0,6.58894315]
[1646946594465,3.709461,2620.1,2620.0,7.62485744]
[1646946596013,0.02118217,2620.1,2620.0,7.62485744]
[1646946596212,0.0042733,2620.2,2620.0,10.10455744]
[1646946596412,0.01709065,2620.6,2620.1,6.8224288]
[1646946596614,0.01709065,2620.6,2620.3,1.04166541]
[1646946596819,0.01709065,2620.6,2620.4,4.92084655]
[1646946597015,0.01709065,2620.6,2620.5,1.41351182]
[1646946597216,0.21012124,2620.6,2620.5,1.41351182]
[1646946597617,0.21012124,2620.6,2620.5,4.27649182]
[1646946597618,4.01012124,2620.6,2620.5,4.27649182]
[1646946597817,4.01012124,2620.6,2620.5,4.2042849]
[1646946598221,4.01012124,2620.6,2620.5,7.7042849]
[1646946599224,4.01012124,2620.6,2620.5,2.86298]
[1646946602263,4.01012124,2620.6,2620.4,1.90864]